bitfinex-derivatives/quotes_SOLF0:USTF0_20241218
["timestamp","ask_amount","ask_price","bid_price","bid_amount"]
[1734495184067,2.2986,217.53,217.48,2.2991]
[1734495186569,0.91924438,217.57,217.44,16.75049886]
[1734495187164,2.2985,217.54,217.49,2.299]
[1734495188069,3.21744438,217.57,217.52,2.2987]
[1734495188371,3.21744438,217.57,217.5,8.9318869]
[1734495189468,3.21744438,217.57,217.52,2.2987]
[1734495189863,0.91924438,217.57,217.53,2.46]
[1734495190065,0.91924438,217.57,217.56,2.2983]
[1734495190873,0.91924438,217.57,217.55,2.2984]
[1734495191070,0.91924438,217.57,217.53,11.3918869]
[1734495191371,242.48728895,217.74,217.53,11.3918869]
[1734495191372,12.8604869,217.69,217.56,8.9318869]
[1734495191572,2.2974,217.65,217.6,2.2978]
[1734495191970,2.2975,217.64,217.58,4.758]
[1734495192374,5.416613,217.66,217.58,2.46]
[1734495192667,2.2974,217.65,217.6,2.2978]
[1734495193075,2.2973,217.65,217.58,4.758]
[1734495193278,5.39916054,217.68,217.58,4.758]
[1734495193485,5.39916054,217.68,217.58,2.46]
[1734495193779,2.2975,217.64,217.59,2.2979]
[1734495195785,2.2975,217.64,217.58,2.46]
[1734495195786,2.2973,217.66,217.61,2.2977]
[1734495197485,2.2973,217.66,217.59,1.5769]
[1734495198180,2.2976,217.63,217.59,1.5769]
[1734495198381,2.46,217.67,217.49,3.0805]
[1734495198684,168.36604705,217.66,217.52,8.9318869]
[1734495198882,2.2982,217.57,217.52,11.2305869]
[1734495199284,159.43416015,217.65,217.52,8.9318869]
[1734495199789,161.00386015,217.66,217.55,8.9318869]
[1734495200084,2.2978,217.61,217.56,4.7582]
[1734495200687,2.2979,217.6,217.56,4.7582]
[1734495203386,2.2977,217.62,217.57,2.2981]
[1734495203688,159.43416015,217.67,217.58,8.9318869]
[1734495203880,191.66676419,217.69,217.58,8.9318869]
[1734495203881,165.02095676,217.69,217.58,8.9318869]
[1734495204081,371.86553429,217.71,217.57,2.46]
[1734495204082,2.2971,217.67,217.62,2.2976]
[1734495204281,2.2971,217.67,217.62,4.7576]
[1734495206482,2.2971,217.67,217.63,2.2975]
[1734495208584,2.297,217.68,217.64,2.2974]
[1734495209184,5.61828724,217.71,217.62,2.46]
[1734495209595,30.38592634,217.71,217.62,2.46]
[1734495209889,24.7676391,217.7,217.62,2.46]
[1734495210095,2.2975,217.63,217.62,2.46]
[1734495210891,2.2975,217.63,217.59,2.298]
[1734495211091,8.9318869,217.68,217.51,2.9886]
[1734495211286,8.9318869,217.68,217.52,8.9318869]
[1734495211287,8.9318869,217.65,217.52,8.9318869]
[1734495211492,2.2978,217.61,217.52,8.9318869]
[1734495211793,9.72175436,217.64,217.52,8.9318869]
[1734495211994,193.75252625,217.64,217.52,8.9318869]
[1734495212194,24.755456,217.63,217.52,8.9318869]
[1734495212394,7.32175436,217.62,217.52,8.9318869]
[1734495212585,17.82991071,217.62,217.52,8.9318869]
[1734495212790,159.43416015,217.63,217.52,8.9318869]
[1734495213100,7.31877457,217.62,217.52,8.9318869]
[1734495213492,2.2984,217.56,217.52,8.9318869]
[1734495214593,2.2984,217.55,217.52,8.9318869]
[1734495219599,5.4158016,217.6,217.52,8.9318869]
[1734495220298,2.2985,217.55,217.52,8.9318869]
[1734495220693,2.298,217.59,217.55,2.2984]
[1734495220897,1.5747,217.64,217.55,8.9318869]
[1734495221094,185.78355616,217.64,217.55,8.9318869]
[1734495221400,208.84878835,217.63,217.55,8.9318869]
[1734495221601,17.84335009,217.62,217.55,8.9318869]
[1734495221800,161.00886015,217.64,217.55,8.9318869]
[1734495221991,17.85028632,217.63,217.55,8.9318869]
[1734495222198,10.52210453,217.63,217.55,8.9318869]
[1734495222393,7.33077087,217.62,217.55,8.9318869]
[1734495222598,2.298,217.59,217.55,8.9318869]
[1734495223402,159.43416015,217.64,217.52,8.9318869]
[1734495223602,159.43416015,217.62,217.52,8.9318869]
[1734495223793,17.86332322,217.61,217.49,8.9318869]
[1734495224099,2.2986,217.54,217.49,11.3318869]
[1734495224693,2.2986,217.54,217.49,13.6308869]
[1734495225098,2.2986,217.54,217.49,11.3318869]
[1734495225801,24.8024897,217.6,217.5,2.2988]
[1734495225999,17.86347244,217.59,217.52,8.9318869]
[1734495226199,7.33384632,217.58,217.52,8.9318869]
[1734495226503,345.51412773,217.65,217.55,8.9318869]
[1734495226697,2.298,217.59,217.55,8.9318869]
[1734495227300,161.83416015,217.65,217.55,8.9318869]
[1734495227501,24.81265462,217.64,217.55,8.9318869]
[1734495227695,24.81265462,217.63,217.55,8.9318869]
[1734495227895,7.33646283,217.62,217.55,8.9318869]
[1734495228206,24.81251818,217.64,217.55,8.9318869]
[1734495228506,2.298,217.59,217.55,11.2302869]
[1734495230406,2.298,217.59,217.56,2.2983]
[1734495231407,24.82003067,217.63,217.56,2.2983]
[1734495231606,7.33863751,217.62,217.56,2.2983]
[1734495231810,24.82855459,217.65,217.56,2.2983]
[1734495232010,24.82855459,217.64,217.56,2.2983]
[1734495232207,2.2979,217.6,217.56,2.2983]
[1734495234111,2.298,217.59,217.56,2.2983]
[1734495234313,24.84164428,217.62,217.5,1.4516]
[1734495234508,24.84249104,217.61,217.53,2.4]
[1734495234708,7.34503399,217.6,217.53,2.4]
[1734495235008,7.34503399,217.61,217.56,8.9318869]
[1734495235210,345.51412773,217.66,217.59,8.9318869]
[1734495235404,24.84990359,217.65,217.6,2.2979]
[1734495235608,345.51412773,217.66,217.6,2.2979]
[1734495235609,7.34725796,217.64,217.6,2.2979]
[1734495235813,17.89775942,217.65,217.6,2.2979]
[1734495236112,159.43416015,217.68,217.63,5.71032159]
[1734495236308,24.85151173,217.67,217.63,5.71032159]
[1734495236502,9.6448396,217.66,217.65,5.71032159]
[1734495236707,2.2972,217.66,217.65,5.71032159]
[1734495238215,2.2972,217.66,217.62,2.2976]
[1734495238510,17.89324044,217.69,217.61,8.92057958]
[1734495238707,165.05244739,217.71,217.61,8.92057958]
[1734495238708,2.297,217.68,217.61,8.92057958]
[1734495239306,2.297,217.69,217.64,2.2974]
[1734495239510,2.297,217.69,217.65,2.4]
[1734495239912,5.61828724,217.71,217.65,2.4]
[1734495240114,2.297,217.68,217.65,2.4]
[1734495241113,7.95828724,217.71,217.47,5.63382459]
[1734495241313,159.43416015,217.68,217.59,8.92057958]
[1734495241619,159.43416015,217.68,217.57,2.34]
[1734495241620,2.2981,217.58,217.57,2.34]
[1734495241813,2.2981,217.58,217.56,11.26057958]
[1734495242008,2.2981,217.58,217.56,8.92057958]
[1734495242215,2.2981,217.58,217.53,11.21917958]
[1734495242409,2.2981,217.58,217.54,2.34]
[1734495242614,2.2981,217.58,217.53,11.21917958]
[1734495242816,24.83285521,217.61,217.54,2.34]
[1734495243010,2.2982,217.57,217.54,2.34]
[1734495243211,159.43416015,217.64,217.54,2.34]
[1734495243515,2.2985,217.54,217.51,2.34]
[1734495245416,2.2985,217.54,217.5,8.92057958]
[1734495245717,2.2986,217.53,217.5,8.92057958]
[1734495245921,238.53031086,217.59,217.47,8.92057958]
[1734495246119,159.43416015,217.56,217.46,2.34]
[1734495246418,8.92057958,217.53,217.4,8.92057958]
[1734495246613,8.92057958,217.53,217.41,2.34]
[1734495246614,168.35473973,217.53,217.41,2.34]
[1734495246813,2.2995,217.45,217.41,2.34]
[1734495247014,38.95121966,217.51,217.41,2.34]
[1734495247216,6.94997608,217.5,217.4,8.92057958]
[1734495247419,17.49628939,217.5,217.37,13.56087958]
[1734495247616,14.29533468,217.49,217.37,13.56087958]
[1734495247818,6.94997608,217.49,217.37,13.56087958]
[1734495248013,19.81980324,217.51,217.37,13.56087958]
[1734495248212,6.94997608,217.5,217.37,11.26057958]
[1734495248419,17.86488843,217.5,217.38,2.3002]
[1734495248619,10.52982716,217.5,217.38,2.3002]
[1734495248817,2.34,217.51,217.38,2.3002]
[1734495249121,8.92057958,217.5,217.37,8.92057958]
[1734495249323,58.31827033,217.5,217.37,8.92057958]
[1734495249529,8.92057958,217.47,217.26,4.4976]
[1734495249824,8.92057958,217.44,217.31,8.92057958]
[1734495250024,3.043,217.43,217.32,2.34]
[1734495250222,2.3005,217.35,217.32,2.34]
[1734495250417,3.043,217.43,217.32,2.34]
[1734495250626,3.043,217.43,217.33,8.92057958]
[1734495251222,1.4997,217.43,217.33,8.92057958]
[1734495251420,2.2999,217.41,217.33,8.92057958]
[1734495251822,1.4997,217.43,217.32,2.34]
[1734495252019,1.4997,217.43,217.33,8.92057958]
[1734495252422,2.3001,217.39,217.33,8.92057958]
[1734495253126,1.4997,217.43,217.36,8.92057958]
[1734495253316,5.38902639,217.46,217.37,2.34]
[1734495253916,5.38902639,217.46,217.36,8.92057958]
[1734495254120,5.38902639,217.46,217.36,11.26057958]
[1734495254521,5.38902639,217.46,217.36,13.56097958]
[1734495254718,0.91954022,217.5,217.39,8.92057958]
[1734495255124,2.2994,217.46,217.39,11.22057958]
[1734495255624,2.2994,217.46,217.4,2.3]
[1734495255823,2.2992,217.48,217.42,8.92057958]
[1734495256717,0.91954022,217.5,217.42,8.92057958]
[1734495256917,0.91954022,217.5,217.41,2.34]
[1734495257119,0.91954022,217.5,217.4,2.34]
[1734495259230,0.91954022,217.5,217.42,8.92057958]
[1734495259619,0.91954022,217.5,217.4,2.34]
[1734495259620,0.91954022,217.5,217.46,2.2993]
[1734495259819,0.91954022,217.5,217.46,4.6393]
[1734495260821,0.91954022,217.5,217.46,2.34]
[1734495261527,1.5922,217.59,217.48,8.92057958]
[1734495262529,1.5476,217.61,217.48,8.92057958]
[1734495262733,7.30718762,217.61,217.48,8.92057958]
[1734495263028,7.30718762,217.61,217.52,2.2987]
[1734495263029,2.2982,217.57,217.52,2.2987]
[1734495263230,2.2982,217.57,217.52,2.34]
[1734495264629,3.8332,217.63,217.52,2.34]
[1734495264833,12.75377958,217.63,217.48,10.38917958]
[1734495265024,8.92057958,217.57,217.47,1.5296]
[1734495265323,11.26057958,217.57,217.45,2.34]
[1734495266529,17.7836679,217.56,217.44,2.34]
[1734495266830,8.92057958,217.54,217.44,2.34]
[1734495267423,16.22187021,217.54,217.44,2.34]
[1734495267724,161.77416015,217.6,217.44,2.34]
[1734495267931,39.05132664,217.59,217.44,2.34]
[1734495268122,24.69562697,217.58,217.44,2.34]
[1734495268324,2.2989,217.5,217.45,2.2994]
[1734495268928,2.299,217.49,217.44,4.6395]
[1734495269131,8.92057958,217.56,217.44,2.34]
[1734495269327,8.92057958,217.53,217.41,2.34]
[1734495269531,2.2995,217.45,217.41,2.34]
[1734495270124,2.299,217.5,217.43,2.2996]
[1734495270427,2.34,217.55,217.43,2.2996]
[1734495270727,9.64162481,217.55,217.43,2.2996]
[1734495271030,2.2991,217.49,217.43,2.2996]
[1734495271425,7.30136795,217.54,217.43,2.2996]
[1734495271627,9.64136795,217.55,217.43,2.2996]
[1734495272224,9.64136795,217.55,217.41,4.6398]
[1734495272431,8.92057958,217.53,217.41,2.34]
[1734495272640,2.2995,217.45,217.41,2.34]
[1734495272825,2.36,217.53,217.44,2.2995]
[1734495273424,1.5416,217.54,217.43,8.92057958]
[1734495273625,7.30229349,217.55,217.46,8.92057958]
[1734495273835,7.30377582,217.58,217.47,2.36]
[1734495274329,16.71569967,217.59,217.47,4.6592]
[1734495274533,2.2987,217.53,217.47,4.6592]
[1734495274930,2.2987,217.53,217.48,2.2991]
[1734495275636,2.2987,217.53,217.49,2.36]
[1734495276136,2.2987,217.52,217.49,2.36]
[1734495276336,14.35569967,217.59,217.49,2.36]
[1734495277632,2.2987,217.53,217.49,2.36]
[1734495278535,14.35569967,217.59,217.49,2.36]
[1734495278838,5.43512009,217.59,217.49,4.6589]
[1734495279435,2.2986,217.54,217.49,4.6589]
[1734495280538,2.2986,217.54,217.5,2.36]
[1734495280741,2.2986,217.54,217.5,4.6589]
[1734495281934,5.43512009,217.59,217.37,1.4686]
[1734495282135,13.8,217.58,217.39,8.92057958]
[1734495282331,40.89335307,217.57,217.38,1.5786]
[1734495282536,8.92057958,217.53,217.4,2.3]
[1734495282740,24.73335307,217.55,217.4,2.3]
[1734495282932,24.73335307,217.55,217.38,1.5786]
[1734495282933,2.36,217.52,217.39,8.92057958]
[1734495283236,7.31236345,217.52,217.38,1.5786]
[1734495283437,2.36,217.54,217.38,1.5786]
[1734495283438,8.92057958,217.51,217.38,1.5786]
[1734495283632,8.92057958,217.51,217.38,10.49917958]
[1734495283833,207.18916308,217.53,217.41,8.92057958]
[1734495283834,24.74831715,217.52,217.41,8.92057958]
[1734495284040,347.21061212,217.56,217.44,8.92057958]
[1734495284333,2.2989,217.5,217.44,8.92057958]
[1734495284936,2.2989,217.5,217.45,2.2994]
[1734495285845,2.2988,217.52,217.46,2.2993]
[1734495286145,24.78493721,217.57,217.47,11.28057958]
[1734495286342,17.85084251,217.57,217.48,2.36]
[1734495286544,165.6181256,217.59,217.48,2.36]
[1734495286844,2.2986,217.53,217.48,4.6591]
[1734495287651,2.2986,217.53,217.49,2.36]
[1734495289359,2.2985,217.54,217.49,4.6589]
[1734495289563,157.82300551,217.58,217.49,11.28057958]
[1734495289855,182.49557205,217.58,217.49,11.28057958]
[1734495290157,157.82300551,217.58,217.49,11.28057958]
[1734495290559,2.2983,217.56,217.52,2.2987]
[1734495290959,2.2984,217.55,217.5,2.2989]
[1734495291456,7.34084754,217.58,217.49,8.92057958]
[1734495291654,2.2986,217.53,217.49,2.36]
[1734495292155,7.34084754,217.56,217.49,2.36]
[1734495292352,157.82300551,217.55,217.46,2.36]
[1734495292559,182.50806333,217.54,217.46,2.36]
[1734495292758,31.62853575,217.53,217.46,2.36]
[1734495293056,2.2989,217.51,217.46,2.36]
[1734495293257,157.82300551,217.53,217.46,2.36]
[1734495293456,347.21061212,217.55,217.46,2.36]
[1734495293655,175.30666505,217.54,217.46,2.36]
[1734495293856,17.87910645,217.53,217.46,2.36]
[1734495294058,10.53858796,217.53,217.46,2.36]
[1734495294555,7.34155326,217.52,217.46,2.36]
[1734495294752,24.82659135,217.54,217.46,2.36]
[1734495294955,17.88084495,217.53,217.46,2.36]
[1734495295152,14.28643936,217.52,217.45,2.36]
[1734495295355,24.82604673,217.52,217.44,2.36]
[1734495295555,24.82604673,217.51,217.44,2.36]
[1734495295753,6.94520178,217.5,217.44,2.36]
[1734495295957,42.18029052,217.5,217.44,2.36]
[1734495296158,24.82604673,217.49,217.44,2.36]
[1734495296355,17.88084495,217.48,217.44,2.36]
[1734495296555,2.2994,217.45,217.44,2.36]
[1734495297265,2.2997,217.44,217.42,2.36]
[1734495297561,24.84262154,217.47,217.42,2.36]
[1734495297762,7.3457908,217.46,217.39,1.4631]
[1734495297956,157.82300551,217.5,217.34,8.92057958]
[1734495297957,8.92057958,217.48,217.34,8.92057958]
[1734495298156,157.82300551,217.47,217.35,2.36]
[1734495298361,24.84595534,217.46,217.35,2.36]
[1734495298564,2.3001,217.4,217.35,2.36]
[1734495298761,24.84595534,217.44,217.35,2.36]
[1734495298957,7.3457908,217.44,217.35,2.36]
[1734495299259,17.89288139,217.43,217.35,2.36]
[1734495299463,2.3001,217.39,217.35,2.36]
[1734495299662,24.84518144,217.46,217.35,2.36]
[1734495299858,24.84518144,217.45,217.34,8.92057958]
[1734495300055,2.3003,217.37,217.33,2.36]
[1734495300261,7.34744255,217.43,217.26,4.5539]
[1734495300566,2.3006,217.35,217.3,8.92057958]
[1734495300958,17.8928802,217.42,217.3,8.92057958]
[1734495301265,2.3006,217.34,217.3,11.28057958]
[1734495301462,17.8928802,217.41,217.31,2.3009]
[1734495301663,3.1396,217.42,217.31,2.3009]
[1734495302057,10.4852627,217.42,217.31,2.3009]
[1734495302457,3.1396,217.42,217.31,2.3009]
[1734495303067,10.48284652,217.42,217.31,2.3009]
[1734495303266,1.5813,217.42,217.33,11.22127958]
[1734495303463,1.5813,217.42,217.33,8.92057958]
[1734495303663,24.63384247,217.46,217.33,8.92057958]
[1734495303664,17.87948495,217.44,217.33,8.92057958]
[1734495303866,188.97881647,217.47,217.36,8.92057958]
[1734495303867,2.2999,217.41,217.36,8.92057958]
[1734495304062,15.88283003,217.47,217.37,2.36]
[1734495304367,2.2997,217.43,217.39,8.92057958]
[1734495304568,7.12239571,217.48,217.39,8.92057958]
[1734495304569,5.52639571,217.48,217.39,8.92057958]
[1734495304967,5.52639571,217.48,217.39,11.22067958]
[1734495305470,2.2993,217.47,217.41,2.2998]
[1734495305666,2.2993,217.47,217.42,2.36]
[1734495306471,2.2993,217.47,217.42,13.58037958]
[1734495306969,2.2993,217.46,217.42,11.28057958]
[1734495308771,347.21061212,217.56,217.45,8.92057958]
[1734495308965,24.83324497,217.55,217.45,8.92057958]
[1734495309274,7.79512009,217.59,217.46,4.6593]
[1734495309275,2.2988,217.52,217.46,4.6593]
[1734495309470,2.2988,217.52,217.46,2.36]
[1734495310471,2.2985,217.54,217.48,8.92057958]
[1734495310664,165.6181256,217.59,217.48,8.92057958]
[1734495310665,7.3445329,217.56,217.48,8.92057958]
[1734495311061,17.89236967,217.58,217.48,8.92057958]
[1734495311276,5.43512009,217.59,217.48,8.92057958]
[1734495311467,12.38681571,217.59,217.48,8.92057958]
[1734495311668,17.89612393,217.58,217.48,8.92057958]
[1734495311867,10.54880397,217.58,217.48,8.92057958]
[1734495312064,5.43512009,217.59,217.48,8.92057958]
[1734495312271,2.2982,217.58,217.51,8.92057958]
[1734495312567,57.24650569,217.62,217.52,2.36]
[1734495312568,187.40246316,217.62,217.52,2.36]
[1734495312769,0.91899094,217.63,217.54,8.92057958]
[1734495313071,157.82300551,217.65,217.57,8.92057958]
[1734495313267,17.89521103,217.64,217.58,2.36]
[1734495313468,29.57699579,217.68,217.6,8.92057958]
[1734495313666,17.90147631,217.67,217.6,8.92057958]
[1734495314168,29.59040842,217.73,217.66,8.92057958]
[1734495314474,10.54750571,217.72,217.67,2.36]
[1734495314773,7.05260246,217.72,217.67,2.36]
[1734495315473,9.34930246,217.72,217.67,2.36]
[1734495316171,15.97318204,217.72,217.61,8.92057958]
[1734495316373,8.92057958,217.69,217.61,2.36]
[1734495316868,33.43516156,217.69,217.61,2.36]
[1734495317070,17.47616375,217.68,217.61,2.36]
[1734495317266,2.2978,217.61,217.58,2.36]
[1734495318870,3.0544,217.69,217.58,11.28057958]
[1734495319474,27.56203172,217.69,217.58,11.28057958]
[1734495319670,17.46760445,217.68,217.58,11.28057958]
[1734495319876,2.2978,217.61,217.58,11.28057958]
[1734495320071,24.50763172,217.67,217.58,4.6581]
[1734495320274,10.52926748,217.67,217.58,4.6581]
[1734495320472,2.2973,217.66,217.58,4.6581]
[1734495320677,3.0544,217.69,217.58,4.6581]
[1734495320978,2.36,217.71,217.58,4.6581]
[1734495320979,26.84984362,217.71,217.58,4.6581]
[1734495321173,6.93330007,217.7,217.58,4.6581]
[1734495321378,17.45491145,217.7,217.58,4.6581]
[1734495321578,10.52161138,217.7,217.58,4.6581]
[1734495321776,17.45071375,217.69,217.58,2.36]
[1734495321977,2.36,217.71,217.58,2.36]
[1734495322579,26.8432209,217.71,217.58,2.36]
[1734495322774,2.2977,217.62,217.58,2.36]
[1734495323175,2.36,217.71,217.58,2.36]
[1734495323378,2.298,217.6,217.56,14.27828094]
[1734495323673,2.298,217.6,217.57,2.36]
[1734495323873,10.51530247,217.69,217.57,2.36]
[1734495324078,2.2977,217.62,217.57,2.36]
[1734495324674,2.2979,217.6,217.57,2.36]
[1734495325078,26.84586503,217.71,217.58,2.298]
[1734495325278,2.2973,217.66,217.57,16.63828094]
[1734495325480,2.36,217.71,217.57,16.63828094]
[1734495325973,2.36,217.71,217.58,2.298]
[1734495326381,2.2974,217.65,217.59,2.2979]
[1734495326679,2.36,217.71,217.57,16.63828094]
[1734495326878,99.35678267,217.73,217.57,16.63828094]
[1734495327077,99.35678267,217.73,217.61,2.2978]
[1734495327280,99.35678267,217.73,217.62,2.36]
[1734495328273,2.2968,217.7,217.64,2.2974]
[1734495328480,2.2968,217.7,217.62,2.36]
[1734495328875,99.35678267,217.73,217.62,2.36]
[1734495328876,2.2967,217.72,217.67,2.297]
[1734495329075,2.2967,217.72,217.67,4.657]
[1734495329876,99.35678267,217.73,217.67,2.36]
[1734495330074,101.65328267,217.73,217.68,2.297]
[1734495330687,99.35678267,217.73,217.69,2.2969]
[1734495330878,3.8295,217.8,217.67,2.36]
[1734495331282,2.2961,217.77,217.71,2.2966]
[1734495331483,5.57228121,217.81,217.72,2.34]
[1734495331883,5.57228121,217.81,217.68,2.9489]
[1734495331884,5.57228121,217.81,217.68,1.448]
[1734495332081,5.57228121,217.81,217.53,4.5972]
[1734495332082,5.57228121,217.81,217.64,2.34]
[1734495332282,14.27828094,217.78,217.62,14.27828094]
[1734495332484,3.9055,217.77,217.63,2.34]
[1734495333082,28.34025312,217.77,217.63,2.34]
[1734495333278,2.2974,217.64,217.63,2.34]
[1734495333477,10.49874548,217.75,217.63,2.34]
[1734495333682,3.9055,217.77,217.63,2.34]
[1734495333881,2.2972,217.67,217.63,2.34]
[1734495334187,17.41376191,217.76,217.63,2.34]
[1734495334488,10.49683797,217.76,217.63,2.34]
[1734495334686,3.9055,217.77,217.63,2.34]
[1734495334876,17.83816734,217.77,217.63,2.34]
[1734495335082,10.49509733,217.76,217.63,2.34]
[1734495335281,3.9055,217.77,217.63,2.34]
[1734495335587,2.2971,217.67,217.63,2.34]
[1734495336088,14.40241733,217.77,217.63,2.34]
[1734495336388,14.40241733,217.77,217.61,2.34]
[1734495336389,24.42972564,217.76,217.61,2.34]
[1734495336684,17.41320417,217.75,217.61,2.34]
[1734495336887,2.2975,217.64,217.61,2.34]
[1734495337878,2.2971,217.68,217.61,2.34]
[1734495338079,5.3995746,217.7,217.61,2.34]
[1734495338884,2.2972,217.67,217.62,2.2976]
[1734495339083,5.3995746,217.7,217.61,2.34]
[1734495339485,5.3995746,217.7,217.61,4.6378]
[1734495339885,2.2975,217.64,217.61,2.34]
[1734495342088,5.3995746,217.7,217.61,2.34]
[1734495342282,5.3995746,217.7,217.62,11.21979524]
[1734495342283,2.2972,217.67,217.62,11.21979524]
[1734495342491,157.82300551,217.71,217.62,8.92219524]
[1734495342787,27.031765,217.7,217.43,118.52121319]
[1734495342985,157.82300551,217.69,217.57,8.92219524]
[1734495343187,182.51477051,217.69,217.57,8.92219524]
[1734495343387,157.82300551,217.67,217.57,2.34]
[1734495343588,182.51477051,217.66,217.57,2.34]
[1734495343782,157.82300551,217.66,217.57,2.34]
[1734495344182,182.51477051,217.65,217.57,2.34]
[1734495344588,2.2981,217.59,217.57,2.34]
[1734495344987,157.82300551,217.65,217.57,2.34]
[1734495345189,157.82300551,217.63,217.54,8.92219524]
[1734495345586,2.2983,217.56,217.54,8.92219524]
[1734495347392,157.82300551,217.62,217.54,8.92219524]
[1734495347695,157.82300551,217.64,217.57,8.92219524]
[1734495347987,2.2977,217.62,217.58,2.34]
[1734495350096,2.2976,217.63,217.58,2.34]
[1734495350291,163.27649116,217.66,217.58,2.34]
[1734495350798,182.59534571,217.65,217.58,2.34]
[1734495350996,157.82300551,217.65,217.58,2.34]
[1734495351194,24.7723402,217.64,217.58,2.34]
[1734495351400,2.298,217.59,217.58,2.34]
[1734495351592,182.59687158,217.64,217.54,2.34]
[1734495351794,182.59687158,217.63,217.54,2.34]
[1734495352098,2.2982,217.58,217.54,2.34]
[1734495352288,157.82300551,217.63,217.56,8.92219524]
[1734495352491,157.82300551,217.66,217.62,8.92219524]
[1734495352693,189.38760661,217.7,217.65,8.92219524]
[1734495352998,157.82300551,217.71,217.66,2.34]
[1734495353193,157.82300551,217.72,217.66,2.34]
[1734495353692,24.77713489,217.74,217.68,8.92219524]
[1734495353898,157.82300551,217.76,217.68,8.92219524]
[1734495354294,157.82300551,217.77,217.68,8.92219524]
[1734495354494,163.44919521,217.78,217.68,8.92219524]
[1734495354695,193.18117924,217.77,217.68,8.92219524]
[1734495354896,182.59528298,217.77,217.68,8.92219524]
[1734495355089,42.33562277,217.76,217.68,8.92219524]
[1734495355295,157.82300551,217.77,217.68,8.92219524]
[1734495355596,157.82300551,217.77,217.69,2.2969]
[1734495355898,163.44919521,217.78,217.69,2.2969]
[1734495356099,2.2963,217.75,217.69,2.2969]
[1734495356698,17.56930198,217.78,217.71,11.21889524]
[1734495357003,157.82300551,217.8,217.72,2.34]
[1734495357197,17.5710236,217.79,217.72,2.34]
[1734495357395,10.59190298,217.79,217.72,2.34]
[1734495357906,157.82300551,217.82,217.74,8.92219524]
[1734495358200,17.57265481,217.81,217.76,2.2962]
[1734495358411,17.57265481,217.81,217.77,2.34]
[1734495358412,10.59292204,217.81,217.77,2.34]
[1734495358808,2.2956,217.82,217.77,2.34]
[1734495359110,157.82300551,217.83,217.77,2.34]
[1734495359506,2.2956,217.82,217.77,2.34]
[1734495359709,6.97706347,217.82,217.77,2.34]
[1734495359914,17.56186505,217.82,217.77,2.34]
[1734495360115,10.58480158,217.82,217.77,2.34]
[1734495360305,6.97363898,217.81,217.69,2.34]
[1734495360511,157.82300551,217.8,217.69,2.34]
[1734495360710,24.63263942,217.79,217.69,2.34]
[1734495360911,2.2964,217.75,217.69,2.34]
[1734495361615,157.82300551,217.82,217.71,8.92219524]
[1734495361809,191.72760661,217.83,217.71,8.92219524]
[1734495361810,17.5514129,217.81,217.71,8.92219524]
[1734495362010,2.2961,217.77,217.71,8.92219524]
[1734495362210,2.2961,217.77,217.69,2.34]
[1734495362211,157.82300551,217.78,217.68,8.92219524]
[1734495362416,200.08297169,217.77,217.68,11.26219524]
[1734495362618,24.71785693,217.76,217.68,11.26219524]
[1734495362818,157.82300551,217.77,217.68,11.26219524]
[1734495363017,166.74520075,217.77,217.62,4.5837]
[1734495363319,8.92219524,217.74,217.63,2.34]
[1734495363508,157.82300551,217.7,217.63,2.34]
[1734495364113,10.57263133,217.69,217.58,8.92219524]
[1734495364418,2.2979,217.6,217.59,2.34]
[1734495364723,8.92219524,217.68,217.53,11.26219524]
[1734495364724,8.92219524,217.65,217.53,11.26219524]
[1734495364916,2.2983,217.56,217.53,2.34]
[1734495365313,49.31357987,217.63,217.53,2.34]
[1734495365516,160.81980551,217.64,217.53,11.26219524]
[1734495365717,17.53122519,217.63,217.53,11.26219524]
[1734495365914,10.56749273,217.63,217.53,11.26219524]
[1734495366119,1.4952,217.64,217.53,2.34]
[1734495366519,2.2978,217.61,217.55,2.2984]
[1734495367124,2.298,217.59,217.53,4.6385]